bitfinex/quotes_SOLUSD_20241126
["timestamp","ask_amount","ask_price","bid_price","bid_amount"]
[1732660276536,8.5748753,232.16,232.09,141.8086]
[1732660277212,8.5748753,232.16,232.09,150.3834753]
[1732660277705,8.5748753,232.17,232.09,12.8834753]
[1732660278628,3.2294,232.24,232.09,12.8834753]
[1732660278933,8.5748753,232.17,232.1,8.5748753]
[1732660280022,8.5748753,232.16,232.1,4.3084]
[1732660280934,1.2921,232.18,232.08,12.8834753]
[1732660280935,8.5748753,232.14,232.08,12.8834753]
[1732660281427,8.5748753,232.15,232.08,4.3086]
[1732660283331,8.5748753,232.16,232.08,12.8834753]
[1732660285731,9.8670753,232.16,232.08,12.8834753]
[1732660285922,8.5748753,232.16,232.08,11.80667813]
[1732660286131,23.776884,232.17,232.08,11.80667813]
[1732660286435,8.5748753,232.16,232.08,11.80667813]
[1732660287139,20.0,232.23,232.1,8.5748753]
[1732660287342,8.5748753,232.19,232.1,8.5748753]
[1732660287511,8.5748753,232.21,232.12,8.5748753]
[1732660287929,8.5748753,232.21,232.13,4.3079]
[1732660288318,8.5748753,232.19,232.13,4.3079]
[1732660289720,8.5748753,232.19,232.11,28.5748753]
[1732660289920,8.5748753,232.19,232.12,4.3081]
[1732660290823,8.5748753,232.18,232.09,12.8834753]
[1732660292538,8.5748753,232.17,232.1,8.5748753]
[1732660292739,8.5748753,232.19,232.11,8.5748753]
[1732660293226,1.292,232.2,232.11,8.5748753]
[1732660293429,8.5748753,232.19,232.12,4.3081]
[1732660294637,8.5748753,232.19,232.11,20.0]
[1732660294841,8.5748753,232.19,232.11,28.5748753]
[1732660296219,8.5748753,232.19,232.12,4.3081]
[1732660300043,23.776884,232.23,232.12,4.3081]
[1732660300343,8.5748753,232.19,232.12,4.3081]
[1732660303347,3.22676983,232.18,232.12,4.3081]
[1732660304429,8.5748753,232.19,232.12,4.3081]
[1732660304753,3.22842635,232.18,232.12,4.3081]
[1732660304955,8.5748753,232.19,232.12,4.3081]
[1732660305247,3.22843035,232.18,232.12,4.3081]
[1732660305540,8.5748753,232.19,232.12,4.3081]
[1732660305750,3.22849511,232.18,232.12,4.3081]
[1732660306048,8.5748753,232.19,232.12,4.3081]
[1732660306249,3.22856728,232.18,232.12,4.3081]
[1732660306446,8.5748753,232.19,232.12,4.3081]
[1732660306639,3.22917977,232.18,232.12,4.3081]
[1732660306847,11.804207,232.17,232.09,4.3086]
[1732660307039,3.2293317,232.16,232.09,12.8834753]
[1732660307241,8.5748753,232.17,232.09,12.8834753]
[1732660307445,3.22958208,232.16,232.09,12.8834753]
[1732660307646,8.5748753,232.17,232.09,12.8834753]
[1732660307849,3.22954174,232.16,232.09,4.3086]
[1732660308149,8.5748753,232.17,232.09,12.8834753]
[1732660308457,3.22948801,232.16,232.09,4.3086]
[1732660308646,3.22948801,232.15,232.09,4.3086]
[1732660308831,3.22948801,232.14,232.09,4.3086]
[1732660309153,9.8669753,232.17,232.09,4.3086]
[1732660309154,3.22948801,232.13,232.09,4.3086]
[1732660309352,8.5748753,232.15,232.09,4.3086]
[1732660309754,11.8045537,232.14,232.07,6.0511]
[1732660310051,11.8045537,232.14,232.06,15.9152]
[1732660310052,8.5748753,232.12,232.06,15.9152]
[1732660310348,3.22968314,232.11,232.06,15.9152]
[1732660310538,8.5748753,232.1,232.05,4.3092]
[1732660310738,8.5748753,232.11,232.05,4.3092]
[1732660311050,8.5748753,232.09,232.02,18.8948753]
[1732660311832,3.22920589,232.08,232.02,14.5850753]
[1732660312153,8.5748753,232.06,232.01,15.34]
[1732660312455,8.5748753,232.05,231.97,14.5850753]
[1732660312838,8.5748753,232.05,231.97,18.8958753]
[1732660313439,8.5748753,232.04,231.97,18.8958753]
[1732660314050,8.5748753,232.04,231.97,10.321]
[1732660314350,8.5748753,232.04,231.97,18.8958753]
[1732660315754,8.5748753,232.04,231.97,10.321]
[1732660315940,20.0,232.1,231.97,18.8958753]
[1732660316133,8.5748753,232.04,231.97,18.8958753]
[1732660317039,8.5748753,232.03,231.97,10.321]
[1732660317757,8.5748753,232.03,231.97,6.0102]
[1732660318754,8.5748753,232.03,231.97,10.321]
[1732660318935,8.5748753,232.04,231.97,10.321]
[1732660320458,8.5748753,232.03,231.97,4.3108]
[1732660321329,8.5748753,232.04,231.97,4.3108]
[1732660323456,8.5748753,232.03,231.97,4.3108]
[1732660323661,8.5748753,232.0,231.93,4.3116]
[1732660323857,8.5748753,231.99,231.93,4.3116]
[1732660324165,8.5748753,232.0,231.93,4.3116]
[1732660324746,8.5748753,232.0,231.93,12.8864753]
[1732660326255,8.5748753,231.99,231.93,4.3116]
[1732660326558,8.5748753,232.0,231.93,4.3116]
[1732660326739,8.5748753,231.99,231.93,4.3116]
[1732660326938,8.5748753,231.98,231.93,4.3116]
[1732660327134,8.5748753,231.98,231.92,6.4905]
[1732660327444,8.5748753,231.96,231.9,20.6017]
[1732660327650,8.5748753,231.95,231.9,20.6017]
[1732660327851,8.5748753,231.94,231.88,4.3124]
[1732660328148,8.5748753,231.95,231.88,12.8872753]
[1732660329551,8.5748753,231.94,231.88,4.3124]
[1732660329838,8.5748753,231.92,231.85,6.4206]
[1732660330435,8.5748753,231.92,231.85,10.7337]
[1732660330838,23.776884,231.93,231.85,10.7337]
[1732660331260,8.5748753,231.91,231.85,10.7337]
[1732660331572,8.5748753,231.9,231.84,20.603]
[1732660331859,8.5748753,231.88,231.84,16.2897]
[1732660332063,8.5748753,231.88,231.81,8.5748753]
[1732660332362,8.5748753,231.88,231.81,12.8885753]
[1732660332549,8.5748753,231.87,231.83,20.0]
[1732660332756,8.5748753,231.88,231.83,20.0]
[1732660334555,8.5748753,231.84,231.79,16.2897]
[1732660334757,8.5748753,231.82,231.75,8.5748753]
[1732660335068,8.5748753,231.81,231.74,31.2851753]
[1732660335251,8.5748753,231.8,231.74,22.7103]
[1732660335845,8.5748753,231.79,231.74,22.7103]
[1732660336162,8.5748753,231.79,231.71,8.5748753]
[1732660336163,8.5748753,231.79,231.71,12.8903753]
[1732660336743,8.5748753,231.79,231.72,8.5748753]
[1732660337053,32.3517593,231.8,231.73,4.3153]
[1732660338181,8.5748753,231.79,231.72,28.5748753]
[1732660338548,23.776884,231.78,231.7,4.3159]
[1732660338747,23.776884,231.78,231.72,8.5748753]
[1732660341353,8.5748753,231.78,231.71,12.8904753]
[1732660341552,23.776884,231.77,231.71,12.8904753]
[1732660343975,23.776884,231.77,231.71,4.3156]
[1732660344153,32.3517593,231.77,231.71,4.3156]
[1732660344353,23.776884,231.77,231.71,12.8904753]
[1732660344671,32.3517593,231.78,231.71,12.8904753]
[1732660346876,32.3517593,231.78,231.69,16.8090625]
[1732660347069,8.5748753,231.77,231.7,12.8907753]
[1732660347374,8.5748753,231.76,231.7,4.3159]
[1732660347874,8.5748753,231.77,231.7,12.8907753]
[1732660350371,23.776884,231.78,231.7,12.8907753]
[1732660350578,8.5748753,231.77,231.7,12.8907753]
[1732660352164,8.5748753,231.76,231.7,12.8907753]
[1732660352568,8.5748753,231.77,231.7,12.8907753]
[1732660352767,23.776884,231.78,231.69,4.8352625]
[1732660352768,8.5748753,231.74,231.69,4.8352625]
[1732660352973,8.5748753,231.73,231.69,0.5193625]
[1732660353764,8.5748753,231.72,231.69,0.5193625]
[1732660353968,8.5748753,231.71,231.69,0.5193625]
[1732660355767,8.5748753,231.7,231.69,0.5193625]
[1732660356585,32.3517593,231.7,231.69,0.5193625]
[1732660357081,33.6464593,231.7,231.69,0.5193625]
[1732660362478,1.2946,231.73,231.69,0.5193625]
[1732660362675,8.5748753,231.7,231.69,0.5193625]
[1732660363982,32.3517593,231.7,231.69,0.5193625]
[1732660364221,33.6464593,231.7,231.69,0.5193625]
[1732660366803,25.071584,231.7,231.69,0.5193625]
[1732660366969,33.6464593,231.7,231.69,0.5193625]
[1732660369164,25.071584,231.7,231.69,0.5193625]
[1732660369368,33.6464593,231.7,231.69,0.5193625]
[1732660369776,9.8695753,231.7,231.69,0.5193625]
[1732660370379,1.2946,231.73,231.69,0.5193625]
[1732660370581,8.5748753,231.7,231.69,0.5193625]
[1732660372072,1.2946,231.72,231.69,0.5193625]
[1732660372293,25.071284,231.76,231.69,0.5193625]
[1732660372488,8.5748753,231.73,231.69,0.5193625]
[1732660372692,1.2942,231.79,231.69,13.4101378]
[1732660373001,8.5748753,231.76,231.69,13.4101378]
[1732660373186,8.5748753,231.75,231.69,4.8352625]
[1732660373688,8.5748753,231.75,231.69,0.5193625]
[1732660373887,8.5748753,231.74,231.69,0.5193625]
[1732660374695,16.6254,231.92,231.73,8.5748753]
[1732660374885,8.5748753,231.87,231.79,8.5748753]
[1732660375272,3.20428675,231.86,231.79,12.8888753]
[1732660375497,3.20428675,231.86,231.83,8.5748753]
[1732660375699,3.20428675,231.85,231.83,8.5748753]
[1732660375880,8.5748753,231.92,231.83,8.5748753]
[1732660375881,3.20428675,231.91,231.83,8.5748753]
[1732660376079,3.20480336,231.9,231.83,8.5748753]
[1732660376401,3.20480336,231.89,231.83,8.5748753]
[1732660376702,3.20480336,231.88,231.85,8.5748753]
[1732660376878,3.20480336,231.91,231.85,8.5748753]
[1732660377080,3.20480336,231.9,231.85,8.5748753]
[1732660377300,3.20480336,231.89,231.85,8.5748753]
[1732660377476,3.20480336,231.88,231.81,26.7627]
[1732660377798,8.5748753,231.9,231.82,8.5748753]
[1732660377993,3.20706245,231.87,231.82,8.5748753]
[1732660378178,8.5748753,231.9,231.82,8.5748753]
[1732660378378,3.20796787,231.89,231.82,8.5748753]
[1732660379396,3.20796787,231.89,231.84,8.5748753]
[1732660379597,3.20796787,231.88,231.84,8.5748753]
[1732660379810,3.20796787,231.87,231.84,8.5748753]
[1732660380101,3.20796787,231.86,231.84,8.5748753]
[1732660380296,5.0,231.97,231.81,22.449]
[1732660380297,8.5748753,231.87,231.81,22.449]
[1732660380608,3.20921173,231.86,231.81,22.449]
[1732660381094,3.20921173,231.88,231.81,22.449]
[1732660381400,8.5748753,231.89,231.81,22.449]
[1732660381401,3.20940817,231.87,231.81,22.449]
[1732660381599,3.20940817,231.86,231.81,22.449]
[1732660381896,11.78449093,231.85,231.81,22.449]
[1732660382070,8.5748753,231.83,231.76,22.2087]
[1732660382491,8.5748753,231.81,231.76,22.2087]
[1732660382896,8.5748753,231.79,231.73,137.5]
[1732660383096,8.5748753,231.78,231.71,14.5837753]
[1732660383301,8.5748753,231.76,231.71,6.0089]
[1732660383502,8.5748753,231.75,231.71,6.0089]
[1732660383806,8.5748753,231.75,231.69,0.5193625]
[1732660383991,8.5748753,231.71,231.69,0.5193625]
[1732660384388,13.43316409,231.71,231.69,0.5193625]
[1732660385579,13.43316409,231.7,231.69,0.5193625]
[1732660388289,16.64651243,231.7,231.69,0.5193625]
[1732660389583,40.42339643,231.7,231.69,0.5193625]
[1732660392988,45.42339643,231.7,231.69,0.5193625]
[1732660394240,45.42339643,231.7,231.55,6.0089]
[1732660394241,20.0,231.66,231.55,6.0089]
[1732660394414,13.43316409,231.59,231.55,6.0089]
[1732660396908,13.43316409,231.6,231.55,6.0089]
[1732660397298,13.43316409,231.6,231.54,15.6275]
[1732660397505,13.43316409,231.59,231.54,15.6275]
[1732660397684,23.2636,231.58,231.52,17.75236409]
[1732660397890,43.776884,231.5,231.35,13.43316409]
[1732660398088,13.43316409,231.47,231.35,17.75556409]
[1732660398311,37.21004809,231.47,231.35,13.43316409]
[1732660398488,40.42336015,231.47,231.35,13.43316409]
[1732660398786,40.42336015,231.47,231.33,13.43316409]
[1732660399717,41.71936015,231.47,231.33,13.43316409]
[1732660400031,23.776884,231.42,231.3,6.4649]
[1732660400193,23.776884,231.42,231.23,16.0684625]
[1732660400194,13.43316409,231.31,231.24,6.4649]
[1732660400509,13.43316409,231.31,231.24,19.89806409]
[1732660401013,13.43316409,231.31,231.24,6.4649]
[1732660402099,13.43316409,231.31,231.24,24.22246409]
[1732660402612,13.43316409,231.31,231.24,19.89806409]
[1732660402911,13.43316409,231.25,231.23,0.5193625]
[1732660403304,13.43316409,231.29,231.23,0.5193625]
[1732660403499,13.43316409,231.28,231.23,0.5193625]
[1732660403900,13.43316409,231.3,231.23,0.5193625]
[1732660404095,13.43316409,231.29,231.23,0.5193625]
[1732660404296,13.43316409,231.27,231.23,0.5193625]
[1732660405723,13.43316409,231.29,231.23,0.5193625]
[1732660406115,13.43316409,231.29,231.21,13.43316409]
[1732660407118,13.43316409,231.22,231.17,6.4649]
[1732660407305,13.43316409,231.23,231.17,6.4649]
[1732660407701,13.43316409,231.24,231.17,6.4649]
[1732660407913,13.43316409,231.23,231.17,6.4649]
[1732660408514,13.43316409,231.26,231.19,13.43316409]
[1732660408817,13.43316409,231.26,231.17,24.22366409]
[1732660409191,13.43316409,231.27,231.19,13.43316409]
[1732660410314,13.43316409,231.25,231.19,4.3253]
[1732660411798,13.43316409,231.27,231.19,17.75846409]
[1732660414007,13.43316409,231.29,231.21,13.43316409]
[1732660414611,13.43316409,231.23,231.17,10.7906]
[1732660419603,13.43316409,231.25,231.17,10.7906]
[1732660422628,13.43316409,231.23,231.17,10.7906]
[1732660424918,13.43316409,231.25,231.17,10.7906]
[1732660427929,20.0,231.28,231.17,10.7906]
[1732660428132,13.43316409,231.25,231.17,10.7906]
[1732660429316,13.43316409,231.27,231.18,13.43316409]
[1732660429523,13.43316409,231.29,231.2,13.43316409]
[1732660430438,13.43316409,231.29,231.22,17.75796409]
[1732660430830,13.43316409,231.28,231.22,4.3248]
[1732660431131,13.43316409,231.3,231.23,13.43316409]
[1732660431311,13.43316409,231.31,231.23,13.43316409]
[1732660432133,13.43316409,231.3,231.23,13.43316409]
[1732660432527,13.43316409,231.3,231.24,4.3245]
[1732660433321,13.43316409,231.33,231.26,13.43316409]
[1732660434520,13.43316409,231.34,231.27,13.43316409]
[1732660435332,13.43316409,231.33,231.26,13.43316409]
[1732660436135,13.43316409,231.33,231.27,4.3239]
[1732660437711,13.43316409,231.34,231.28,21.9354]
[1732660438215,13.43316409,231.34,231.29,4.3235]
[1732660438421,8.62495897,231.34,231.29,4.3235]
[1732660440927,8.62495897,231.34,231.28,21.9354]
[1732660441251,8.62495897,231.34,231.28,26.2591]
[1732660441435,8.62495897,231.34,231.27,4.3239]
[1732660442435,3.23008666,231.33,231.25,8.62495897]
[1732660442638,8.62495897,231.34,231.26,4.3241]
[1732660442816,3.23007591,231.33,231.26,4.3241]
[1732660443016,8.62495897,231.34,231.26,4.3241]
[1732660443216,3.2300608,231.33,231.26,4.3241]
[1732660443418,3.2300608,231.32,231.26,12.94905897]
[1732660443635,8.62495897,231.34,231.26,12.94905897]
[1732660443833,3.23303829,231.33,231.26,12.94905897]
[1732660444139,3.23303829,231.32,231.26,12.94905897]
[1732660444343,20.0,231.4,231.26,12.94905897]
[1732660444528,8.62495897,231.33,231.26,12.94905897]
[1732660444726,3.23429402,231.32,231.26,12.94905897]
[1732660445039,8.62495897,231.35,231.26,12.94905897]
[1732660445338,3.23409986,231.34,231.26,12.94905897]
[1732660445516,3.23409986,231.33,231.26,12.94905897]
[1732660445721,3.23409986,231.32,231.26,12.94905897]
[1732660445928,8.62495897,231.35,231.26,12.94905897]
[1732660446238,3.23453736,231.34,231.26,12.94905897]
[1732660446441,3.23453736,231.33,231.26,12.94905897]
[1732660446636,3.23453736,231.32,231.26,12.94905897]
[1732660446939,8.62495897,231.35,231.26,12.94905897]
[1732660447240,3.23415309,231.34,231.26,12.94905897]
[1732660447438,3.23415309,231.33,231.26,12.94905897]
[1732660447637,8.62495897,231.35,231.26,12.94905897]
[1732660447841,3.23377269,231.34,231.26,12.94905897]
[1732660448017,3.23377269,231.33,231.26,12.94905897]
[1732660448221,8.62495897,231.35,231.26,12.94905897]
[1732660448422,3.23344358,231.34,231.25,8.62495897]
[1732660448645,11.85840255,231.33,231.24,4.3245]
[1732660448947,3.23344358,231.32,231.24,4.3245]
[1732660449247,8.62495897,231.35,231.25,8.62495897]
[1732660449422,3.23315364,231.34,231.25,8.62495897]
[1732660449620,3.23315364,231.33,231.25,8.62495897]
[1732660449846,8.62495897,231.35,231.25,8.62495897]
[1732660450023,3.23313746,231.34,231.25,8.62495897]
[1732660450224,3.23313746,231.33,231.27,8.62495897]
[1732660450641,8.62495897,231.37,231.27,8.62495897]
[1732660450848,3.23279088,231.36,231.27,8.62495897]
[1732660451148,3.23279088,231.35,231.27,8.62495897]
[1732660451333,8.62495897,231.37,231.27,8.62495897]
[1732660451334,3.23279088,231.34,231.28,4.3237]
[1732660451647,8.62495897,231.37,231.28,4.3237]
[1732660451846,3.23251198,231.36,231.28,4.3237]
[1732660452145,3.23251198,231.35,231.28,4.3237]
[1732660452344,3.23251198,231.34,231.29,8.62495897]
[1732660452519,8.62495897,231.37,231.29,8.62495897]
[1732660452718,1.2965,231.39,231.31,8.62495897]
[1732660452719,3.23230122,231.36,231.31,8.62495897]
[1732660452929,8.62495897,231.39,231.31,8.62495897]
[1732660453132,3.23221195,231.38,231.31,8.62495897]
[1732660453427,3.23221195,231.37,231.31,8.62495897]
[1732660453634,3.23221195,231.36,231.31,8.62495897]
[1732660453834,8.62495897,231.39,231.32,4.323]
[1732660454035,3.23196603,231.38,231.32,4.323]
[1732660454235,3.23196603,231.37,231.32,4.323]
[1732660454438,3.23196603,231.36,231.32,12.94795897]
[1732660454635,8.62495897,231.39,231.32,12.94795897]
[1732660454835,3.23164486,231.38,231.32,12.94795897]
[1732660455037,3.23164486,231.37,231.32,12.94795897]
[1732660455237,3.23164486,231.36,231.32,12.94795897]
[1732660455437,8.62495897,231.4,231.33,8.62495897]
[1732660455651,3.23135532,231.39,231.32,12.94795897]
[1732660455846,3.23135532,231.38,231.32,12.94795897]
[1732660456034,3.23135532,231.37,231.32,12.94795897]
[1732660456228,8.62495897,231.4,231.32,12.94795897]
[1732660456428,11.85594564,231.39,231.32,4.323]
[1732660456630,3.23098667,231.38,231.32,4.323]
[1732660456828,3.23098667,231.37,231.32,4.323]
[1732660457139,1.2964,231.41,231.32,4.323]
[1732660457341,8.62495897,231.39,231.32,4.323]
[1732660457538,3.23070659,231.38,231.32,4.323]
[1732660457738,3.23070659,231.37,231.32,4.323]
[1732660458052,8.62495897,231.39,231.32,4.323]
[1732660458255,3.23068994,231.38,231.32,4.323]
[1732660458453,3.23068994,231.37,231.32,4.323]
[1732660458748,8.62495897,231.39,231.32,4.323]
[1732660459051,3.23047288,231.38,231.32,12.94795897]
[1732660459229,3.23047288,231.37,231.32,12.94795897]
[1732660459430,8.62495897,231.39,231.32,12.94795897]
[1732660459728,3.23022163,231.38,231.32,12.94795897]
[1732660459930,3.23022163,231.37,231.32,12.94795897]
[1732660460125,4.84071196,231.47,231.33,8.62495897]
[1732660460330,23.776884,231.45,231.33,24.89365897]
[1732660460635,8.62495897,231.42,231.34,8.62495897]
[1732660460949,3.2300679,231.41,231.34,8.62495897]
[1732660461142,3.2300679,231.4,231.34,8.62495897]
[1732660461344,3.2300679,231.39,231.35,4.3224]
[1732660461740,3.2300679,231.38,231.35,4.3224]
[1732660461955,8.62495897,231.42,231.35,4.3224]
[1732660462244,3.22982337,231.41,231.38,8.62495897]
[1732660462448,1.2957,231.52,231.4,8.62495897]
[1732660462632,1.2957,231.52,231.41,8.62495897]
[1732660462633,8.62495897,231.48,231.41,8.62495897]
[1732660462833,11.85406947,231.47,231.4,8.62495897]
[1732660463052,3.2291105,231.46,231.4,8.62495897]
[1732660463229,3.2291105,231.45,231.41,8.62495897]
[1732660463425,3.2291105,231.44,231.42,4.3211]
[1732660463635,8.62495897,231.48,231.42,4.3211]
[1732660463841,3.22774202,231.47,231.44,8.62495897]
[1732660464045,8.62495897,231.53,231.45,8.62495897]
[1732660464263,3.22555531,231.52,231.45,8.62495897]
[1732660464438,6.85051428,231.53,231.46,8.62495897]
[1732660464640,8.62495897,231.54,231.47,8.62495897]
[1732660465835,18.9204,231.62,231.47,8.62495897]
[1732660466035,1.2952,231.61,231.49,8.62495897]
[1732660466250,8.62495897,231.57,231.5,8.62495897]
[1732660466455,8.62495897,231.58,231.5,8.62495897]
[1732660467344,8.62495897,231.58,231.51,4.3194]
[1732660467542,16.9775,231.63,231.51,12.94435897]
[1732660467855,8.62495897,231.58,231.51,12.94435897]
[1732660468754,1.2952,231.62,231.51,12.94435897]
[1732660469054,8.62495897,231.59,231.51,12.94435897]
[1732660471760,8.62495897,231.57,231.51,4.3194]
[1732660473054,8.62495897,231.58,231.5,8.62495897]
[1732660474659,8.62495897,231.57,231.51,4.3194]
[1732660475460,8.62495897,231.55,231.49,4.3197]
[1732660475669,8.62495897,231.52,231.47,4.3201]
[1732660476351,23.776884,231.6,231.47,12.94505897]
[1732660476558,8.62495897,231.55,231.49,4.3198]
[1732660476745,1.2954,231.58,231.49,4.3198]
[1732660476944,8.62495897,231.55,231.49,4.3198]
[1732660477352,8.62495897,231.54,231.49,4.3198]
[1732660477948,8.62495897,231.54,231.47,8.62495897]
[1732660478147,8.62495897,231.55,231.48,4.32]
[1732660481155,8.62495897,231.53,231.45,4.3205]
[1732660481350,8.62495897,231.51,231.45,4.3205]
[1732660481548,8.62495897,231.51,231.44,6.2222]
[1732660481865,8.62495897,231.49,231.44,6.2222]
[1732660484646,8.62495897,231.49,231.44,10.5429]
[1732660485761,8.62495897,231.51,231.44,10.5429]
[1732660485964,8.62495897,231.51,231.44,19.16785897]
[1732660487048,8.62495897,231.49,231.44,6.2222]
[1732660487274,8.62495897,231.49,231.43,16.2687]
[1732660489171,8.62495897,231.49,231.43,20.5896]
[1732660493855,8.62495897,231.5,231.43,20.5896]
[1732660495181,20.0,231.55,231.46,8.62495897]
[1732660495357,3.21376268,231.54,231.48,8.62495897]
[1732660495562,8.62495897,231.56,231.48,8.62495897]
[1732660496781,8.62495897,231.56,231.49,4.3198]
[1732660497776,8.62495897,231.55,231.49,4.3198]
[1732660498881,8.62495897,231.55,231.48,4.32]
[1732660499056,9.92055897,231.55,231.48,4.32]
[1732660499264,8.62495897,231.55,231.48,4.32]
[1732660504294,3.22313795,231.54,231.48,4.32]
[1732660504481,1.2954,231.58,231.48,4.32]
[1732660504682,8.62495897,231.56,231.48,4.32]
[1732660504862,3.22324316,231.55,231.48,4.32]
[1732660507370,3.22324316,231.54,231.48,4.32]
[1732660507572,3.22324316,231.53,231.48,4.32]
[1732660507870,8.62495897,231.56,231.48,4.32]
[1732660508065,3.22884304,231.55,231.48,4.32]
[1732660508371,3.22884304,231.54,231.48,4.32]
[1732660508573,3.22884304,231.53,231.48,4.32]
[1732660508772,3.22884304,231.52,231.48,4.32]
[1732660509079,9.92045897,231.56,231.48,4.32]
[1732660509285,3.23002574,231.55,231.48,4.32]
[1732660509466,3.23002574,231.54,231.48,4.32]
[1732660509786,3.23016672,231.53,231.48,4.32]
[1732660510094,3.23016672,231.52,231.48,4.32]
[1732660510392,9.92045897,231.56,231.48,4.32]
[1732660510564,3.23034399,231.55,231.48,4.32]
[1732660510769,3.23034399,231.54,231.48,4.32]
[1732660510984,3.23037693,231.53,231.48,4.32]
[1732660511281,3.23036914,231.52,231.48,4.32]
[1732660511492,3.23036914,231.55,231.48,4.32]
[1732660511697,3.23035611,231.54,231.48,4.32]
[1732660511882,3.23035611,231.53,231.48,4.32]
[1732660512087,3.23035611,231.52,231.48,4.32]
[1732660512271,8.62495897,231.56,231.48,4.32]
[1732660512472,3.23026446,231.55,231.48,4.32]
[1732660512685,3.23026446,231.54,231.48,4.32]
[1732660512878,3.23026446,231.53,231.48,4.32]
[1732660513080,8.62495897,231.56,231.48,4.32]
[1732660513279,3.23012599,231.55,231.48,4.32]
[1732660513474,3.23012599,231.54,231.48,4.32]
[1732660513789,3.23012599,231.53,231.48,4.32]
[1732660513989,3.23012599,231.55,231.48,4.32]
[1732660514329,3.23027549,231.54,231.48,4.32]
[1732660514594,3.23027549,231.53,231.48,12.94495897]
[1732660514772,8.62495897,231.59,231.5,8.62495897]
[1732660514972,3.2304435,231.58,231.5,8.62495897]
[1732660515169,3.2304435,231.57,231.5,8.62495897]
[1732660515374,3.2304435,231.56,231.5,8.62495897]
[1732660515574,3.2304435,231.55,231.5,8.62495897]
[1732660515774,8.62495897,231.59,231.5,8.62495897]
[1732660515997,3.23054291,231.58,231.51,4.3194]
[1732660516175,3.23054291,231.57,231.51,4.3194]
[1732660516380,3.23054291,231.56,231.51,4.3194]
[1732660516581,3.23054291,231.55,231.51,4.3194]
[1732660516787,8.62495897,231.59,231.51,4.3194]
[1732660517089,3.23075796,231.58,231.51,4.3194]
[1732660517285,3.23075796,231.57,231.51,4.3194]
[1732660517488,3.23075796,231.56,231.51,4.3194]
[1732660517796,8.40032158,231.55,231.51,4.3194]
[1732660517999,3.23075796,231.54,231.51,4.3194]
[1732660518310,3.23075796,231.53,231.51,20.0]
[1732660518601,8.62495897,231.59,231.51,20.0]
[1732660518602,5.16956362,231.56,231.51,20.0]
[1732660518787,8.40071925,231.55,231.51,20.0]
[1732660518991,3.23115563,231.54,231.51,20.0]
[1732660519182,3.23115563,231.53,231.51,20.0]
[1732660519384,5.16956362,231.56,231.51,20.0]
[1732660519586,8.40093322,231.55,231.52,4.3192]
[1732660519786,3.2313696,231.54,231.52,4.3192]
[1732660519984,5.16956362,231.57,231.52,4.3192]
[1732660520287,8.40089953,231.56,231.52,4.3192]
[1732660520488,8.40089953,231.55,231.52,4.3192]
[1732660520686,3.23133591,231.54,231.52,4.3192]
[1732660520889,3.23133591,231.53,231.52,4.3192]
[1732660521713,8.62495897,231.59,231.52,4.3192]
[1732660521885,15.7278,231.67,231.55,8.62495897]
[1732660521886,8.40154629,231.58,231.55,8.62495897]
[1732660522086,3.23136156,231.57,231.55,8.62495897]
[1732660522497,5.16951792,231.62,231.56,6.1481]
[1732660522693,8.39962235,231.61,231.57,8.62495897]
[1732660522999,8.39962235,231.6,231.57,8.62495897]
[1732660523205,3.23010443,231.59,231.57,8.62495897]
[1732660523380,5.16951792,231.64,231.57,8.62495897]
[1732660523581,8.39829725,231.63,231.57,8.62495897]
[1732660523781,8.39829725,231.62,231.57,8.62495897]
[1732660524005,3.22877933,231.61,231.59,8.62495897]
[1732660524185,3.22877933,231.6,231.59,8.62495897]
[1732660524590,3.22877933,231.6,231.57,4.3183]
[1732660524884,21.2947,231.7,231.59,8.62495897]
[1732660524885,8.62495897,231.68,231.59,8.62495897]
[1732660525105,8.39718125,231.67,231.59,8.62495897]
[1732660525285,8.3917054,231.66,231.59,8.62495897]
[1732660525483,8.3917054,231.65,231.59,8.62495897]
[1732660525797,8.3917054,231.64,231.59,8.62495897]
[1732660526000,8.3917054,231.63,231.6,4.3177]
[1732660526180,3.227579,231.62,231.59,8.62495897]
[1732660526387,3.227579,231.61,231.59,8.62495897]
[1732660526724,5.1641264,231.65,231.59,8.62495897]
[1732660527013,8.62495897,231.67,231.59,8.62495897]
[1732660527014,8.38996245,231.64,231.59,8.62495897]
[1732660527305,3.22583605,231.63,231.59,8.62495897]
[1732660527509,3.22583605,231.62,231.59,8.62495897]
[1732660527806,3.22583605,231.61,231.59,8.62495897]
[1732660528107,5.1641264,231.65,231.59,12.94285897]